[Event "72nd RUS-ch Higher League 2019"]
[Site "Yaroslavl"]
[Date "2019.07.05"]
[Round "8.16"]
[White "Vlasenko, Miroslav"]
[Black "Popov, Ivan"]
[Result "0-1"]
[ECO "E23"]
[WhiteElo "2417"]
[BlackElo "2599"]
[Annotator "ChessBase"]
[PlyCount "74"]
[EventDate "2019.06.27"]
[EventType "swiss"]
[EventCountry "RUS"]
[SourceTitle "playchess.com"]
[Source "ChessBase"]
[SourceQuality "1"]
[TimeControl "40/5400+30:1800+30"]

1. d4 {[%emt 0:01:43]} Nf6 {[%emt 0:00:00]} 2. c4 {[%emt 0:00:06]} e6 {[%emt 0:00:00]} 3. Nc3 {[%emt 0:00:03]} Bb4 {[%emt 0:00:00]} 4. Qb3 {[%emt 0:00:08]} c5 {[%emt 0:00:31]} 5. dxc5 {[%emt 0:00:08]} Nc6 {[%emt 0:00:40]} 6. Nf3 {[%emt 0:00:09]} Ne4 {[%emt 0:00:56]} 7. Bd2 {[%emt 0:00:09]} Nxd2 {[%emt 0:00:20]} 8. Nxd2 {[%emt 0:00:10]} Bxc5 {[%emt 0:00:05]} 9. g3 {[%emt 0:02:14]} b6 {[%emt 0:00:11]} 10. Bg2 {[%emt 0:01:16]} Bb7 {[%emt 0:00:07]} 11. O-O {[%emt 0:02:34]} O-O {[%emt 0:00:21]} 12. e3 {[%emt 0:06:42]} f5 {[%emt 0:05:15]} 13. Qa4 {[%emt 0:12:08]} Qe7 {[%emt 0:14:57]} 14. a3 {[%emt 0:00:42]} a6 {[%emt 0:04:10]} 15. Rfd1 {[%emt 0:04:50]} Rfc8 {[%emt 0:11:08]} 16. Nf3 {[%emt 0:07:39]} Bd6 {[%emt 0:12:29]} 17. Rac1 {[%emt 0:11:39]} Na5 {[%emt 0:13:57]} 18. c5 {[%emt 0:08:58]} Rxc5 {[%emt 0:00:32]} 19. b4 {[%emt 0:00:58]} b5 {[%emt 0:00:18]} 20. bxc5 {[%emt 0:18:19]} bxa4 {[%emt 0:00:19]} 21. cxd6 {[%emt 0:00:03]} Qd8 {[%emt 0:12:20]} 22. Nxa4 {[%emt 0:00:28]} Rc8 {[%emt 0:08:55]} 23. Ne5 {[%emt 0:04:49]} Bxg2 {[%emt 0:00:43]} 24. Kxg2 {[%emt 0:01:44]} Rxc1 {[%emt 0:01:52]} 25. Rxc1 {[%emt 0:00:07]} Nb7 {[%emt 0:00:06]} 26. Rc7 {[%emt 0:06:43]} Nxd6 {[%emt 0:00:08]} 27. Rxd7 {[%emt 0:00:08]} Qa5 {[%emt 0:00:22]} 28. Nc5 {[%emt 0:00:41]} Nc4 {[%emt 0:06:11]} 29. Ned3 {[%emt 0:00:19]} Qb6 {[%emt 0:00:29]} 30. Re7 {[%emt 0:02:12]} g5 {[%emt 0:02:50]} 31. Rxe6 {[%emt 0:00:26]} Qb1 {[%emt 0:00:22]} 32. g4 {[%emt 0:05:16]} Nd2 {[%emt 0:00:54]} 33. gxf5 {[%emt 0:00:59]} Qf1+ {[%emt 0:00:24]} 34. Kg3 {[%emt 0:00:01]} Qg1+ {[%emt 0:00:08]} 35. Kh3 {[%emt 0:00:05]} Nf3 {[%emt 0:01:27]} 36. Ne5 {[%emt 0:00:26]} Qxh2+ {[%emt 0:00:20]} 37. Kg4 {[%emt 0:00:04]} Qg2+ {[%emt 0:00:07]} 0-1

[Event "72nd RUS-ch Higher League 2019"]
[Site "Yaroslavl"]
[Date "2019.07.05"]
[Round "8.17"]
[White "Bocharov, Ivan"]
[Black "Murzin, Volodar"]
[Result "1/2-1/2"]
[ECO "E92"]
[WhiteElo "2559"]
[BlackElo "2418"]
[Annotator "ChessBase"]
[PlyCount "62"]
[EventDate "2019.06.27"]
[EventType "swiss"]
[EventCountry "RUS"]
[SourceTitle "playchess.com"]
[Source "ChessBase"]
[SourceQuality "1"]
[TimeControl "40/5400+30:1800+30"]

1. c4 {[%emt 0:00:00]} Nf6 {[%emt 0:00:00]} 2. Nc3 {[%emt 0:00:00]} g6 {[%emt 0:00:07]} 3. d4 {[%emt 0:00:23]} Bg7 {[%emt 0:00:05]} 4. e4 {[%emt 0:00:04]} O-O {[%emt 0:00:05]} 5. Nf3 {[%emt 0:00:05]} d6 {[%emt 0:00:06]} 6. Be2 {[%emt 0:00:08]} e5 {[%emt 0:00:05]} 7. d5 {[%emt 0:00:04]} a5 {[%emt 0:00:10]} 8. O-O {[%emt 0:00:10]} Na6 {[%emt 0:00:04]} 9. Bg5 {[%emt 0:00:05]} h6 {[%emt 0:00:20]} 10. Bh4 {[%emt 0:00:08]} Qe8 {[%emt 0:00:08]} 11. Nd2 {[%emt 0:00:21]} Nh7 {[%emt 0:00:19]} 12. a3 {[%emt 0:01:42]} Bd7 {[%emt 0:00:23]} 13. b3 {[%emt 0:00:26]} h5 {[%emt 0:00:10]} 14. f3 {[%emt 0:00:07]} Bh6 {[%emt 0:00:07]} 15. Rb1 {[%emt 0:00:28]} Be3+ {[%emt 0:00:11]} 16. Kh1 {[%emt 0:00:13]} Bc5 {[%emt 0:00:09]} 17. Qc1 {[%emt 0:00:30]} Qb8 {[%emt 0:05:11]} 18. Na2 {[%emt 0:05:12]} f5 {[%emt 0:02:37]} 19. exf5 {[%emt 0:04:47]} Bxf5 {[%emt 0:00:33]} 20. Ne4 {[%emt 0:00:27]} Bxe4 {[%emt 0:01:22]} 21. fxe4 {[%emt 0:01:03]} Rxf1+ {[%emt 0:01:43]} 22. Qxf1 {[%emt 0:01:17]} Qf8 {[%emt 0:09:25]} 23. Qxf8+ {[%emt 0:18:23]} Rxf8 {[%emt 0:01:47]} 24. b4 {[%emt 0:00:00]} axb4 {[%emt 0:00:21]} 25. axb4 {[%emt 0:00:02]} Bd4 {[%emt 0:05:05]} 26. Rf1 {[%emt 0:04:09]} Ra8 {[%emt 0:07:34]} 27. Be7 {[%emt 0:09:09]} Re8 {[%emt 0:02:15]} 28. Bh4 {[%emt 0:00:02]} Ra8 {[%emt 0:00:06]} 29. Be7 {[%emt 0:00:41]} Re8 {[%emt 0:04:11]} 30. Bh4 {[%emt 0:00:02]} Ra8 {[%emt 0:00:10]} 31. Be7 {[%emt 0:00:19]} Re8 1/2-1/2

[Event "72nd RUS-ch Higher League 2019"]
[Site "Yaroslavl"]
[Date "2019.07.05"]
[Round "8.18"]
[White "Lomasov, Semyon"]
[Black "Nesterov, Arseniy"]
[Result "1/2-1/2"]
[ECO "C42"]
[WhiteElo "2542"]
[BlackElo "2423"]
[Annotator "ChessBase"]
[PlyCount "73"]
[EventDate "2019.06.27"]
[EventType "swiss"]
[EventCountry "RUS"]
[SourceTitle "playchess.com"]
[Source "ChessBase"]
[SourceQuality "1"]
[TimeControl "40/5400+30:1800+30"]

1. e4 {[%emt 0:00:00]} e5 {[%emt 0:00:00]} 2. Nf3 {[%emt 0:00:00]} Nf6 {[%emt 0:00:00]} 3. Nxe5 {[%emt 0:00:00]} d6 {[%emt 0:00:00]} 4. Nf3 {[%emt 0:00:01]} Nxe4 {[%emt 0:00:00]} 5. Nc3 {[%emt 0:00:20]} Nxc3 {[%emt 0:00:16]} 6. dxc3 {[%emt 0:00:01]} Be7 {[%emt 0:00:31]} 7. Be3 {[%emt 0:00:06]} Nc6 {[%emt 0:01:00]} 8. Bd3 {[%emt 0:00:54]} Be6 {[%emt 0:00:44]} 9. Qe2 {[%emt 0:00:10]} O-O {[%emt 0:08:31]} 10. O-O-O {[%emt 0:01:34]} Qc8 {[%emt 0:03:35]} 11. Kb1 {[%emt 0:16:35]} Bf5 {[%emt 0:01:38]} 12. h3 {[%emt 0:02:32]} a5 {[%emt 0:07:10]} 13. a4 {[%emt 0:01:33]} Ne5 {[%emt 0:06:56]} 14. Nxe5 {[%emt 0:23:47]} dxe5 {[%emt 0:00:08]} 15. g4 {[%emt 0:05:32]} Bxd3 {[%emt 0:00:40]} 16. Qxd3 {[%emt 0:00:04]} Qe6 {[%emt 0:03:23]} 17. Qd7 {[%emt 0:20:34]} Qxd7 {[%emt 0:02:01]} 18. Rxd7 {[%emt 0:00:02]} Bd6 19. c4 {[%emt 0:00:08]} Rfd8 {[%emt 0:00:36]} 20. Rxd8+ {[%emt 0:00:07]} Rxd8 {[%emt 0:00:04]} 21. Rd1 {[%emt 0:01:29]} Be7 {[%emt 0:16:39]} 22. Rd5 {[%emt 0:00:09]} Rxd5 {[%emt 0:01:09]} 23. cxd5 {[%emt 0:00:02]} g6 {[%emt 0:00:21]} 24. f3 {[%emt 0:06:43]} f5 {[%emt 0:00:15]} 25. c3 {[%emt 0:01:38]} Kf7 {[%emt 0:03:06]} 26. Kc2 {[%emt 0:00:37]} Bh4 {[%emt 0:04:30]} 27. Kd3 {[%emt 0:01:36]} Ke7 {[%emt 0:00:13]} 28. Kc4 {[%emt 0:01:32]} Kd7 {[%emt 0:00:15]} 29. b4 {[%emt 0:11:23]} axb4 {[%emt 0:03:42]} 30. cxb4 {[%emt 0:00:05]} Be1 {[%emt 0:00:15]} 31. a5 {[%emt 0:00:26]} h5 {[%emt 0:04:16]} 32. gxf5 {[%emt 0:00:17]} gxf5 {[%emt 0:00:01]} 33. Bc5 {[%emt 0:00:15]} Bd2 {[%emt 0:01:00]} 34. Kd3 {[%emt 0:00:08]} Be1 {[%emt 0:00:04]} 35. Kc4 {[%emt 0:00:04]} Bd2 {[%emt 0:00:05]} 36. Kb3 {[%emt 0:01:58]} Be1 {[%emt 0:00:18]} 37. Kc4 {[%emt 0:05:27]} 1/2-1/2

[Event "72nd RUS-ch Higher League 2019"]
[Site "Yaroslavl"]
[Date "2019.07.05"]
[Round "8.19"]
[White "Airapetian, Gor"]
[Black "Levin, Evgeny A."]
[Result "1-0"]
[ECO "E15"]
[WhiteElo "2442"]
[BlackElo "2504"]
[Annotator "ChessBase"]
[PlyCount "81"]
[EventDate "2019.06.27"]
[EventType "swiss"]
[EventCountry "RUS"]
[SourceTitle "playchess.com"]
[Source "ChessBase"]
[SourceQuality "1"]
[TimeControl "40/5400+30:1800+30"]

1. d4 {[%emt 0:00:00]} Nf6 {[%emt 0:01:23]} 2. c4 {[%emt 0:00:00]} e6 {[%emt 0:00:09]} 3. Nf3 {[%emt 0:00:00]} b6 {[%emt 0:00:06]} 4. g3 {[%emt 0:00:08]} Ba6 {[%emt 0:00:17]} 5. b3 {[%emt 0:01:10]} Bb4+ {[%emt 0:00:25]} 6. Bd2 {[%emt 0:00:06]} Be7 {[%emt 0:00:07]} 7. Nc3 {[%emt 0:00:56]} Bb7 {[%emt 0:00:12]} 8. Bg2 {[%emt 0:00:17]} O-O {[%emt 0:01:19]} 9. O-O {[%emt 0:00:28]} d5 {[%emt 0:00:13]} 10. cxd5 {[%emt 0:00:44]} exd5 {[%emt 0:00:05]} 11. Bf4 {[%emt 0:04:16]} Nbd7 {[%emt 0:02:55]} 12. Qc2 {[%emt 0:03:41]} c6 {[%emt 0:02:37]} 13. Rfd1 {[%emt 0:03:25]} Re8 {[%emt 0:01:24]} 14. Qb2 {[%emt 0:21:07]} Bb4 {[%emt 0:21:57]} 15. Rac1 {[%emt 0:03:59]} Qe7 {[%emt 0:02:40]} 16. Rc2 {[%emt 0:00:10]} Rad8 {[%emt 0:14:43]} 17. Nb1 {[%emt 0:06:29]} Ne4 {[%emt 0:04:26]} 18. a3 {[%emt 0:02:39]} Bd6 {[%emt 0:00:05]} 19. Bxd6 {[%emt 0:00:09]} Nxd6 {[%emt 0:09:08]} 20. e3 {[%emt 0:01:03]} f6 {[%emt 0:18:17]} 21. Nc3 {[%emt 0:00:25]} Nb8 {[%emt 0:04:53]} 22. Nd2 {[%emt 0:02:02]} Ba6 {[%emt 0:01:24]} 23. Rcc1 {[%emt 0:01:26]} Bd3 {[%emt 0:00:38]} 24. a4 {[%emt 0:02:39]} a5 {[%emt 0:03:48]} 25. b4 {[%emt 0:02:00]} axb4 {[%emt 0:01:02]} 26. Qxb4 {[%emt 0:00:53]} Qa7 {[%emt 0:02:54]} 27. Qb3 {[%emt 0:02:55]} Bg6 {[%emt 0:05:36]} 28. e4 {[%emt 0:01:39]} Bf7 {[%emt 0:00:44]} 29. exd5 {[%emt 0:00:26]} Nd7 {[%emt 0:00:30]} 30. Nc4 {[%emt 0:10:04]} Nxc4 {[%emt 0:00:13]} 31. Qxc4 {[%emt 0:00:02]} Rc8 {[%emt 0:00:32]} 32. Qb4 {[%emt 0:03:19]} c5 {[%emt 0:00:33]} 33. dxc5 {[%emt 0:01:52]} Rxc5 {[%emt 0:00:08]} 34. Nb5 {[%emt 0:01:50]} Qa5 {[%emt 0:00:40]} 35. Qxa5 {[%emt 0:06:31]} bxa5 {[%emt 0:00:04]} 36. Bh3 {[%emt 0:00:53]} Rxc1 {[%emt 0:00:05]} 37. Rxc1 {[%emt 0:00:03]} Nb6 {[%emt 0:00:59]} 38. d6 {[%emt 0:00:28]} Kf8 {[%emt 0:01:05]} 39. Nd4 {[%emt 0:08:35]} Rd8 {[%emt 0:00:35]} 40. d7 {[%emt 0:00:00]} Bd5 {[%emt 0:00:00]} 41. Rc5 {[%emt 0:01:16]} 1-0

[Event "72nd RUS-ch Higher League 2019"]
[Site "Yaroslavl"]
[Date "2019.07.05"]
[Round "8.20"]
[White "Kardashevskiy, Evgeny"]
[Black "Belozerov, Andrei"]
[Result "1-0"]
[ECO "D44"]
[WhiteElo "2429"]
[BlackElo "2533"]
[Annotator "ChessBase"]
[PlyCount "109"]
[EventDate "2019.06.27"]
[EventType "swiss"]
[EventCountry "RUS"]
[SourceTitle "playchess.com"]
[Source "ChessBase"]
[SourceQuality "1"]
[TimeControl "40/5400+30:1800+30"]

1. d4 {[%emt 0:00:00]} Nf6 {[%emt 0:04:47]} 2. Nf3 {[%emt 0:00:00]} e6 {[%emt 0:00:16]} 3. c4 {[%emt 0:00:24]} d5 {[%emt 0:00:11]} 4. Nc3 {[%emt 0:00:18]} c6 {[%emt 0:00:08]} 5. Bg5 {[%emt 0:00:35]} dxc4 {[%emt 0:00:05]} 6. e4 {[%emt 0:00:29]} b5 {[%emt 0:00:06]} 7. e5 {[%emt 0:00:25]} h6 {[%emt 0:00:05]} 8. Bh4 {[%emt 0:00:10]} g5 {[%emt 0:00:06]} 9. Nxg5 {[%emt 0:00:10]} hxg5 {[%emt 0:00:06]} 10. Bxg5 {[%emt 0:00:05]} Nbd7 {[%emt 0:00:03]} 11. g3 {[%emt 0:00:32]} Bb7 {[%emt 0:00:33]} 12. Bg2 {[%emt 0:01:23]} Qb6 {[%emt 0:00:15]} 13. exf6 {[%emt 0:00:11]} O-O-O {[%emt 0:00:07]} 14. O-O {[%emt 0:00:14]} c5 {[%emt 0:00:03]} 15. d5 {[%emt 0:00:16]} b4 {[%emt 0:00:06]} 16. Na4 {[%emt 0:00:06]} Qb5 {[%emt 0:02:50]} 17. a3 {[%emt 0:00:51]} Ne5 {[%emt 0:02:31]} 18. Qe2 {[%emt 0:18:31]} Nd3 {[%emt 0:04:07]} 19. dxe6 {[%emt 0:07:57]} Bxg2 {[%emt 0:03:32]} 20. e7 {[%emt 0:02:37]} Bxf1 {[%emt 0:10:56]} 21. Qg4+ {[%emt 0:17:14]} Qd7 {[%emt 0:08:20]} 22. Qe4 {[%emt 0:12:42]} Re8 {[%emt 0:12:14]} 23. Nb6+ {[%emt 0:05:18]} axb6 {[%emt 0:02:03]} 24. axb4 {[%emt 0:00:28]} Bxe7 {[%emt 0:05:51]} 25. Ra8+ {[%emt 0:01:44]} Kc7 {[%emt 0:00:04]} 26. Ra7+ {[%emt 0:00:15]} Kd6 {[%emt 0:00:24]} 27. bxc5+ {[%emt 0:00:51]} Kxc5 {[%emt 0:01:41]} 28. Rxd7 {[%emt 0:00:47]} Bd6 {[%emt 0:02:01]} 29. Be3+ {[%emt 0:01:12]} Kb5 {[%emt 0:03:59]} 30. Qd5+ {[%emt 0:00:46]} Bc5 {[%emt 0:00:36]} 31. Kxf1 {[%emt 0:02:13]} Re5 {[%emt 0:03:13]} 32. Qxf7 {[%emt 0:00:42]} Bxe3 {[%emt 0:01:36]} 33. fxe3 {[%emt 0:00:50]} Rxe3 {[%emt 0:04:42]} 34. Re7 {[%emt 0:06:55]} Rf3+ {[%emt 0:01:56]} 35. Kg1 {[%emt 0:00:19]} Kb4 {[%emt 0:05:14]} 36. Re8 {[%emt 0:02:00]} Rxe8 {[%emt 0:05:20]} 37. Qxe8 {[%emt 0:00:10]} b5 {[%emt 0:00:22]} 38. Qe7+ {[%emt 0:01:24]} Kb3 {[%emt 0:00:25]} 39. Qa3+ {[%emt 0:00:24]} Kc2 {[%emt 0:00:10]} 40. Qc3+ {[%emt 0:00:00]} Kd1 {[%emt 0:00:00]} 41. b3 {[%emt 0:09:37]} Ke2 {[%emt 0:05:47]} 42. bxc4 {[%emt 0:03:42]} Rf1+ {[%emt 0:05:13]} 43. Kg2 {[%emt 0:00:11]} Rf2+ {[%emt 0:00:04]} 44. Kh3 {[%emt 0:02:46]} b4 {[%emt 0:00:53]} 45. Qc2+ {[%emt 0:02:03]} Ke3 {[%emt 0:00:11]} 46. Qxf2+ {[%emt 0:00:43]} Nxf2+ {[%emt 0:00:42]} 47. Kg2 {[%emt 0:00:35]} b3 {[%emt 0:01:38]} 48. f7 {[%emt 0:00:09]} b2 {[%emt 0:00:04]} 49. f8=Q {[%emt 0:00:05]} Nd1 {[%emt 0:00:44]} 50. Qb4 {[%emt 0:00:54]} Kd3 {[%emt 0:00:20]} 51. Qb3+ {[%emt 0:00:29]} Kd2 {[%emt 0:00:09]} 52. c5 {[%emt 0:00:17]} Kc1 {[%emt 0:00:59]} 53. c6 {[%emt 0:00:22]} b1=Q {[%emt 0:00:04]} 54. Qxb1+ {[%emt 0:00:07]} Kxb1 {[%emt 0:00:03]} 55. c7 {[%emt 0:00:07]} 1-0

[Event "72nd RUS-ch Higher League 2019"]
[Site "Yaroslavl"]
[Date "2019.07.05"]
[Round "8.21"]
[White "Rychkov, Oleg"]
[Black "Khanin, Semen"]
[Result "1/2-1/2"]
[ECO "A29"]
[WhiteElo "2409"]
[BlackElo "2529"]
[Annotator "ChessBase"]
[PlyCount "75"]
[EventDate "2019.06.27"]
[EventType "swiss"]
[EventCountry "RUS"]
[SourceTitle "playchess.com"]
[Source "ChessBase"]
[SourceQuality "1"]
[TimeControl "40/5400+30:1800+30"]

1. c4 {[%emt 0:00:00]} e5 {[%emt 0:00:00]} 2. Nc3 {[%emt 0:00:00]} Nf6 {[%emt 0:00:00]} 3. Nf3 {[%emt 0:00:00]} Nc6 {[%emt 0:00:00]} 4. g3 {[%emt 0:00:14]} d5 {[%emt 0:00:00]} 5. cxd5 {[%emt 0:00:21]} Nxd5 {[%emt 0:00:00]} 6. Bg2 {[%emt 0:00:17]} Bc5 {[%emt 0:00:12]} 7. O-O {[%emt 0:00:44]} O-O {[%emt 0:00:10]} 8. Nxd5 {[%emt 0:00:32]} Qxd5 {[%emt 0:00:09]} 9. Ng5 {[%emt 0:00:09]} Qd8 {[%emt 0:01:38]} 10. Nxh7 {[%emt 0:00:29]} Re8 {[%emt 0:00:52]} 11. Ng5 {[%emt 0:00:27]} Qxg5 {[%emt 0:00:59]} 12. Bxc6 {[%emt 0:00:25]} bxc6 {[%emt 0:00:26]} 13. d4 {[%emt 0:00:04]} Qh5 {[%emt 0:00:04]} 14. dxc5 {[%emt 0:00:10]} Be6 {[%emt 0:07:27]} 15. e4 {[%emt 0:05:39]} Qg6 {[%emt 0:09:45]} 16. Qe2 {[%emt 0:02:55]} f5 {[%emt 0:03:29]} 17. f3 {[%emt 0:09:30]} Rad8 {[%emt 0:02:49]} 18. b3 {[%emt 0:16:34]} fxe4 {[%emt 0:07:04]} 19. fxe4 {[%emt 0:00:57]} Rd4 {[%emt 0:08:04]} 20. Bb2 {[%emt 0:04:20]} Rxe4 {[%emt 0:01:09]} 21. Qd2 {[%emt 0:00:32]} Bd5 {[%emt 0:01:30]} 22. Rae1 {[%emt 0:00:47]} Qg4 {[%emt 0:21:07]} 23. Qd3 {[%emt 0:04:13]} Rxe1 {[%emt 0:04:02]} 24. Rxe1 {[%emt 0:03:35]} e4 {[%emt 0:01:30]} 25. Qe2 {[%emt 0:01:10]} Qh3 {[%emt 0:01:15]} 26. Qf1 {[%emt 0:01:06]} Qh5 {[%emt 0:05:16]} 27. Qe2 {[%emt 0:03:38]} Qh3 {[%emt 0:06:00]} 28. Qf1 {[%emt 0:04:55]} Qd7 {[%emt 0:00:09]} 29. Qf4 {[%emt 0:03:49]} Rf8 {[%emt 0:01:11]} 30. Qe5 {[%emt 0:01:05]} Rf5 {[%emt 0:01:21]} 31. Qd4 {[%emt 0:00:11]} Qf7 {[%emt 0:00:21]} 32. Bc1 {[%emt 0:02:12]} Rf3 {[%emt 0:02:05]} 33. Be3 {[%emt 0:01:02]} Qf5 {[%emt 0:01:56]} 34. Qd2 {[%emt 0:00:38]} Qf6 {[%emt 0:02:01]} 35. Bd4 {[%emt 0:06:40]} Qf5 {[%emt 0:01:45]} 36. Be3 {[%emt 0:00:08]} Qf6 {[%emt 0:01:27]} 37. Bd4 {[%emt 0:00:46]} Qf5 {[%emt 0:02:59]} 38. Be3 {[%emt 0:00:41]} 1/2-1/2

[Event "72nd RUS-ch Higher League 2019"]
[Site "Yaroslavl"]
[Date "2019.07.05"]
[Round "8.22"]
[White "Triapishko, Alexandr"]
[Black "Mirzaev, Aziz"]
[Result "1-0"]
[ECO "A06"]
[WhiteElo "2512"]
[BlackElo "2433"]
[Annotator "ChessBase"]
[PlyCount "77"]
[EventDate "2019.06.27"]
[EventType "swiss"]
[EventCountry "RUS"]
[SourceTitle "playchess.com"]
[Source "ChessBase"]
[SourceQuality "1"]
[TimeControl "40/5400+30:1800+30"]

1. Nf3 {[%emt 0:00:00]} d5 {[%emt 0:00:01]} 2. e3 {[%emt 0:00:01]} Nf6 {[%emt 0:00:44]} 3. c4 {[%emt 0:00:25]} g6 {[%emt 0:04:20]} 4. b4 {[%emt 0:18:36]} Bg7 {[%emt 0:02:55]} 5. Bb2 {[%emt 0:02:58]} O-O {[%emt 0:02:03]} 6. cxd5 {[%emt 0:07:02]} Nxd5 {[%emt 0:01:51]} 7. Bxg7 {[%emt 0:05:31]} Kxg7 {[%emt 0:00:07]} 8. Qb3 {[%emt 0:00:38]} c6 {[%emt 0:08:03]} 9. Nc3 {[%emt 0:02:19]} Qd6 {[%emt 0:08:48]} 10. Bc4 {[%emt 0:16:19]} Nxc3 {[%emt 0:08:38]} 11. Qxc3+ {[%emt 0:00:32]} f6 {[%emt 0:01:00]} 12. a4 {[%emt 0:10:54]} Bg4 {[%emt 0:08:49]} 13. Be2 {[%emt 0:08:55]} e5 {[%emt 0:05:00]} 14. O-O {[%emt 0:05:21]} Nd7 {[%emt 0:04:58]} 15. h3 {[%emt 0:02:10]} Be6 {[%emt 0:02:15]} 16. d4 {[%emt 0:06:29]} e4 {[%emt 0:00:40]} 17. Nd2 {[%emt 0:00:06]} Bd5 {[%emt 0:00:13]} 18. b5 {[%emt 0:01:15]} Rac8 {[%emt 0:13:36]} 19. Qb2 {[%emt 0:00:18]} c5 {[%emt 0:02:38]} 20. Rac1 {[%emt 0:01:37]} h5 {[%emt 0:05:34]} 21. Bc4 {[%emt 0:03:03]} Rfd8 {[%emt 0:05:34]} 22. a5 {[%emt 0:03:51]} b6 {[%emt 0:05:02]} 23. a6 {[%emt 0:00:43]} Rc7 {[%emt 0:03:10]} 24. Nb3 {[%emt 0:00:41]} Rdc8 {[%emt 0:03:19]} 25. dxc5 {[%emt 0:00:58]} Nxc5 {[%emt 0:01:06]} 26. Rcd1 {[%emt 0:01:07]} Na4 {[%emt 0:01:22]} 27. Qd2 {[%emt 0:00:24]} Rxc4 {[%emt 0:00:15]} 28. Qxd5 {[%emt 0:00:03]} Qe7 {[%emt 0:00:54]} 29. Rd4 {[%emt 0:01:16]} Nb2 {[%emt 0:01:02]} 30. Rxc4 {[%emt 0:00:35]} Rxc4 {[%emt 0:00:11]} 31. Nd4 {[%emt 0:00:18]} Kh7 {[%emt 0:00:32]} 32. Nc6 {[%emt 0:00:46]} Qc7 {[%emt 0:00:34]} 33. Qe6 {[%emt 0:00:25]} Qg7 {[%emt 0:00:43]} 34. Qd6 {[%emt 0:00:45]} Nd3 {[%emt 0:00:14]} 35. Qb8 {[%emt 0:00:25]} Ne5 {[%emt 0:00:39]} 36. Nxa7 {[%emt 0:00:27]} Qc7 {[%emt 0:00:37]} 37. Qxc7+ {[%emt 0:00:36]} Rxc7 {[%emt 0:00:01]} 38. Nc6 {[%emt 0:00:05]} Nxc6 {[%emt 0:00:13]} 39. Rc1 {[%emt 0:00:10]} 1-0

[Event "72nd RUS-ch Higher League 2019"]
[Site "Yaroslavl"]
[Date "2019.07.05"]
[Round "8.23"]
[White "Eraschenkov, Denis"]
[Black "Sadovsky, Artem"]
[Result "0-1"]
[ECO "A35"]
[WhiteElo "2379"]
[BlackElo "2416"]
[Annotator "NA"]
[PlyCount "112"]
[EventDate "2019.06.27"]
[EventType "swiss"]
[EventCountry "RUS"]
[SourceTitle "playchess.com"]
[Source "ChessBase"]
[SourceQuality "1"]
[TimeControl "40/5400+30:1800+30"]

1. c4 {[%emt 0:00:00]} c5 {[%emt 0:04:33]} 2. Nc3 {[%emt 0:00:36]} Nc6 {[%emt 0:00:28]} 3. Nf3 {[%emt 0:01:06]} g6 {[%emt 0:06:24]} 4. e3 {[%emt 0:02:38]} Bg7 {[%emt 0:00:32]} 5. d4 {[%emt 0:00:24]} cxd4 {[%emt 0:00:21]} 6. exd4 {[%emt 0:00:10]} d6 {[%emt 0:00:44]} 7. d5 {[%emt 0:01:57]} Ne5 {[%emt 0:09:10]} 8. Nd4 {[%emt 0:06:25]} Qb6 {[%emt 0:14:45]} 9. Nb3 {[%emt 0:29:35]} Bg4 {[%emt 0:05:54]} 10. f3 {[%emt 0:09:15]} Bd7 {[%emt 0:01:55]} 11. f4 {[%emt 0:06:51]} Ng4 {[%emt 0:02:25]} 12. Qf3 {[%emt 0:02:32]} a5 {[%emt 0:12:04]} 13. c5 {[%emt 0:03:35]} dxc5 {[%emt 0:01:34]} 14. Nd2 {[%emt 0:00:41]} N4h6 {[%emt 0:11:46]} 15. Nc4 {[%emt 0:00:51]} Qd8 {[%emt 0:01:06]} 16. Ne5 {[%emt 0:17:40]} Nf6 {[%emt 0:01:01]} 17. h3 {[%emt 0:01:50]} Nf5 {[%emt 0:00:59]} 18. g4 {[%emt 0:01:19]} Nd4 {[%emt 0:00:20]} 19. Qf2 {[%emt 0:00:22]} O-O {[%emt 0:02:26]} 20. Bg2 {[%emt 0:01:41]} b5 {[%emt 0:03:15]} 21. Be3 {[%emt 0:01:53]} b4 {[%emt 0:03:05]} 22. Bxd4 {[%emt 0:00:44]} cxd4 {[%emt 0:00:11]} 23. Ne2 {[%emt 0:00:09]} d3 {[%emt 0:03:13]} 24. Nd4 {[%emt 0:00:09]} Be8 {[%emt 0:04:05]} 25. O-O {[%emt 0:02:32]} Qd6 {[%emt 0:02:14]} 26. Ndc6 {[%emt 0:01:00]} Kh8 {[%emt 0:00:46]} 27. Nc4 {[%emt 0:02:19]} Qc7 {[%emt 0:00:36]} 28. Qc5 {[%emt 0:00:45]} Bxc6 {[%emt 0:02:53]} 29. dxc6 {[%emt 0:00:05]} Rfd8 {[%emt 0:00:22]} 30. Ne5 {[%emt 0:00:37]} Kg8 {[%emt 0:01:57]} 31. Kh1 {[%emt 0:02:58]} e6 {[%emt 0:01:03]} 32. Rad1 {[%emt 0:00:33]} Nd5 {[%emt 0:01:37]} 33. Nxd3 {[%emt 0:01:02]} Ra6 {[%emt 0:00:59]} 34. Rc1 {[%emt 0:00:53]} Rd6 {[%emt 0:00:30]} 35. f5 {[%emt 0:00:54]} Raxc6 {[%emt 0:00:24]} 36. Qb5 {[%emt 0:00:39]} h6 {[%emt 0:01:52]} 37. fxe6 {[%emt 0:00:57]} fxe6 {[%emt 0:00:11]} 38. Rxc6 {[%emt 0:00:36]} Qxc6 {[%emt 0:00:25]} 39. Qxa5 {[%emt 0:00:40]} Qc4 {[%emt 0:00:01]} 40. Qc5 {[%emt 0:00:00]} Rc6 {[%emt 0:00:00]} 41. Qxc4 {[%emt 0:12:44]} Rxc4 {[%emt 0:00:43]} 42. Bxd5 {[%emt 0:05:11]} exd5 {[%emt 0:00:05]} 43. Rf4 {[%emt 0:00:16]} Bf8 {[%emt 0:14:28]} 44. Kg2 {[%emt 0:01:23]} Kg7 {[%emt 0:00:34]} 45. b3 {[%emt 0:11:17]} Rc3 {[%emt 0:01:09]} 46. Nxb4 {[%emt 0:01:33]} Bd6 {[%emt 0:00:44]} 47. Nxd5 {[%emt 0:01:07]} Rd3 {[%emt 0:00:16]} 48. Nb4 {[%emt 0:00:30]} Rd2+ {[%emt 0:00:06]} 49. Rf2 {[%emt 0:00:12]} Bxb4 {[%emt 0:00:14]} 50. Rxd2 {[%emt 0:00:08]} Bxd2 {[%emt 0:00:05]} 51. Kf3 {[%emt 0:00:54]} Kf6 {[%emt 0:00:18]} 52. h4 {[%emt 0:00:33]} Ke5 {[%emt 0:00:27]} 53. a4 {[%emt 0:00:21]} Kd4 {[%emt 0:00:31]} 54. Ke2 {[%emt 0:00:29]} Ba5 {[%emt 0:01:18]} 55. Kf3 {[%emt 0:00:31]} g5 {[%emt 0:00:09]} 56. hxg5 {[%emt 0:01:16]} hxg5 {[%emt 0:00:05]} 0-1